bitfinex-derivatives/quotes_BTCF0:USTF0_20250212
["timestamp","ask_amount","ask_price","bid_price","bid_amount"]
[1739386717256,0.3648,96974.0,96973.0,0.22235611]
[1739386718061,0.5740318,96974.0,96973.0,0.22535611]
[1739386718363,0.5740318,96974.0,96973.0,0.01912221]
[1739386718554,0.5740318,96974.0,96973.0,0.01812221]
[1739386719059,0.5760318,96974.0,96973.0,0.01712221]
[1739386719559,0.5690318,96974.0,96973.0,0.01812221]
[1739386720162,0.5730318,96974.0,96973.0,0.01612221]
[1739386720366,0.5730318,96974.0,96973.0,0.22235611]
[1739386720856,0.5720318,96974.0,96973.0,0.22235611]
[1739386721061,0.5700318,96974.0,96973.0,0.22235611]
[1739386722458,0.5680318,96974.0,96973.0,0.22235611]
[1739386722665,0.5680318,96974.0,96973.0,0.01612221]
[1739386722666,0.5700318,96974.0,96973.0,0.01612221]
[1739386722861,0.5700318,96974.0,96973.0,0.01611948]
[1739386723255,0.5720318,96974.0,96973.0,0.01611948]
[1739386724065,0.5730318,96974.0,96973.0,0.01711948]
[1739386724259,0.5720318,96974.0,96973.0,0.001]
[1739386724459,0.5740318,96974.0,96973.0,0.001]
[1739386724957,0.5720318,96974.0,96973.0,0.001]
[1739386725559,0.5740318,96974.0,96973.0,0.001]
[1739386725755,0.2062391,96971.0,96967.0,0.2390466]
[1739386725970,0.2062391,96971.0,96968.0,0.0161203]
[1739386726159,0.36432001,96974.0,96972.0,0.2062349]
[1739386726464,0.3698,96974.0,96973.0,0.001]
[1739386726666,0.576032,96974.0,96973.0,0.001]
[1739386726963,0.574032,96974.0,96973.0,0.001]
[1739386727158,0.576032,96974.0,96972.0,0.2062349]
[1739386727365,0.576032,96974.0,96972.0,0.2072349]
[1739386727366,0.2062339,96973.0,96972.0,0.2072349]
[1739386727664,0.2062339,96973.0,96972.0,0.22335453]
[1739386728664,0.2072339,96973.0,96972.0,0.22335453]
[1739386728860,0.2062339,96973.0,96972.0,0.22235453]
[1739386729061,0.2062339,96973.0,96972.0,0.2062349]
[1739386729465,0.2062403,96970.0,96967.0,0.2390451]
[1739386729658,0.3598,96968.0,96967.0,0.2390451]
[1739386729967,0.5660445,96968.0,96967.0,0.25516563]
[1739386730355,0.5660445,96968.0,96967.0,0.25516534]
[1739386730560,0.5660445,96968.0,96967.0,0.2470451]
[1739386731367,0.5670445,96968.0,96967.0,0.2470451]
[1739386731867,0.5670445,96968.0,96967.0,0.26316512]
[1739386732263,0.5670445,96968.0,96967.0,0.25516512]
[1739386732575,0.5670445,96968.0,96967.0,0.25616512]
[1739386732576,0.5700445,96968.0,96967.0,0.25616512]
[1739386732761,0.5700445,96968.0,96967.0,0.2400451]
[1739386733068,0.5700445,96968.0,96967.0,0.25616512]
[1739386733471,0.5700445,96968.0,96967.0,0.2400451]
[1739386733867,0.5700445,96968.0,96967.0,0.25616507]
[1739386734570,0.2102445,96968.0,96967.0,0.25616507]
[1739386735265,0.2102445,96968.0,96967.0,0.04991997]
[1739386735865,0.2102445,96968.0,96967.0,0.01711997]
[1739386736276,0.2102445,96968.0,96967.0,0.04291201]
[1739386736970,0.2102445,96968.0,96967.0,0.24915871]
[1739386737168,0.004,96968.0,96967.0,0.24915871]
[1739386737774,0.004,96968.0,96967.0,0.2072467]
[1739386737964,0.004,96968.0,96967.0,0.24915735]
[1739386739767,0.2102445,96968.0,96967.0,0.24915735]
[1739386740371,0.004,96968.0,96967.0,0.24915784]
[1739386740877,0.2102445,96968.0,96967.0,0.24915784]
[1739386741065,0.2102445,96968.0,96967.0,0.04291114]
[1739386741465,0.2102445,96968.0,96967.0,0.04291]
[1739386743471,0.2102445,96968.0,96967.0,0.04291219]
[1739386744677,0.004,96968.0,96967.0,0.04291219]
[1739386744872,0.004,96968.0,96967.0,0.24915889]
[1739386746566,0.004,96968.0,96967.0,0.76825889]
[1739386746770,0.01191546,96992.0,96975.0,0.0515572]
[1739386746964,0.00154704,96992.0,96985.0,0.2062084]
[1739386747277,0.00154704,96992.0,96985.0,0.24812059]
[1739386747975,0.02889,96986.0,96985.0,0.24812059]
[1739386748172,0.03789,96986.0,96985.0,0.24812059]
[1739386748376,0.03789,96986.0,96985.0,0.54812059]
[1739386748673,0.03789,96986.0,96985.0,2.04812059]
[1739386748871,0.00154704,96992.0,96985.0,1.84291219]
[1739386749069,0.00015473,96995.0,96991.0,0.3608]
[1739386749277,0.00015473,96995.0,96994.0,0.2061893]
[1739386749476,0.00015473,96995.0,96994.0,0.24810149]
[1739386751166,0.00415473,96995.0,96994.0,0.24910149]
[1739386751675,0.01015473,96995.0,96994.0,0.2500851]
[1739386752082,0.01015473,96995.0,96994.0,0.22430307]
[1739386752967,0.37095473,96995.0,96994.0,0.01811377]
[1739386753185,0.57714183,96995.0,96994.0,0.002]
[1739386754601,0.58755966,96995.0,96994.0,0.002]
[1739386755782,0.65823966,96995.0,96994.0,0.002]
[1739386756694,0.2061979,96990.0,96988.0,0.2062018]
[1739386756890,0.2061999,96989.0,96988.0,0.2062018]
[1739386757296,0.49391818,96995.0,96988.0,0.2062018]
[1739386757492,0.57714243,96995.0,96989.0,0.01611695]
[1739386757776,0.36695473,96995.0,96994.0,0.2061893]
[1739386757979,0.006,96990.0,96988.0,0.002]
[1739386758182,0.006,96990.0,96989.0,0.22231664]
[1739386758376,0.2121978,96990.0,96989.0,0.01611674]
[1739386758684,0.2061978,96990.0,96989.0,0.01711674]
[1739386759087,0.2061978,96990.0,96989.0,0.001]
[1739386759983,0.2061978,96990.0,96989.0,0.01711684]
[1739386760285,0.2061978,96990.0,96989.0,0.001]
[1739386760482,0.01034886,96994.0,96989.0,0.001]
[1739386760687,0.2201978,96990.0,96989.0,0.002]
[1739386761681,0.2131978,96990.0,96989.0,0.002]
[1739386761887,0.2061978,96990.0,96989.0,0.002]
[1739386763276,0.2121978,96990.0,96989.0,0.002]
[1739386763487,0.2121978,96990.0,96989.0,0.001]
[1739386763674,0.2191978,96990.0,96989.0,0.002]
[1739386779793,0.2191978,96990.0,96989.0,0.01811816]
[1739386781294,0.2191978,96990.0,96989.0,0.01811801]
[1739386785599,0.2191978,96990.0,96989.0,0.002]
[1739386789490,0.013,96990.0,96985.0,0.00015473]
[1739386789697,0.013,96990.0,96981.0,0.18547511]
[1739386789698,0.3608,96986.0,96981.0,0.18547511]
[1739386789896,0.3608,96982.0,96981.0,0.18547511]
[1739386790702,0.5670148,96982.0,96981.0,0.18547511]
[1739386791596,0.5730148,96982.0,96981.0,0.18647511]
[1739386792404,0.5870148,96982.0,96981.0,0.18747511]
[1739386793206,0.5870148,96982.0,96981.0,0.18647511]
[1739386793708,0.2062318,96974.0,96973.0,0.18550533]
[1739386793906,0.5670318,96974.0,96973.0,0.18550533]
[1739386794505,0.2062467,96967.0,96966.0,0.24657042]
[1739386794704,0.5670467,96967.0,96966.0,0.24657042]
[1739386796300,0.5710467,96967.0,96966.0,0.24657042]
[1739386797108,0.5750467,96967.0,96966.0,0.24657042]
[1739386797805,0.2062653,96958.0,96957.0,0.00015473]
[1739386797993,0.5670653,96958.0,96957.0,0.01627851]
[1739386798199,0.5670653,96958.0,96957.0,0.00015473]
[1739386799607,0.5690653,96958.0,96957.0,0.00015473]
[1739386801113,0.3628,96958.0,96943.0,0.0318]
[1739386801405,0.5670951,96944.0,96943.0,0.0318]
[1739386801602,0.5670951,96944.0,96943.0,0.0479242]
[1739386802198,0.3608,96944.0,96943.0,0.2642214]
[1739386802611,0.3608,96944.0,96943.0,0.2672214]
[1739386804002,0.5670951,96944.0,96943.0,0.0609242]
[1739386804198,0.5680951,96944.0,96943.0,0.0609242]
[1739386805612,0.5680951,96944.0,96943.0,0.06092385]
[1739386809905,0.5680951,96944.0,96943.0,0.02912385]
[1739386810111,0.5680951,96944.0,96943.0,0.013]
[1739386811012,0.3608,96944.0,96935.0,0.24657042]
[1739386811208,0.5671121,96936.0,96935.0,0.24657042]
[1739386812302,0.2063143,96935.0,96934.0,0.00010352]
[1739386813608,0.2113143,96935.0,96934.0,0.00010352]
[1739386814504,0.2213143,96935.0,96934.0,0.00110352]
[1739386815105,0.016,96935.0,96921.0,0.30798685]
[1739386815312,0.5671422,96922.0,96921.0,0.30798685]
[1739386816021,0.5671422,96922.0,96912.0,0.36966037]
[1739386816022,0.2063613,96913.0,96912.0,0.36966037]
[1739386816318,0.5671613,96913.0,96912.0,0.36966037]
[1739386817109,0.57726364,96913.0,96912.0,0.36966037]
[1739386817314,0.57726364,96913.0,96905.0,0.00116]
[1739386817315,0.2063762,96906.0,96905.0,0.00116]
[1739386817519,0.2063762,96906.0,96901.0,0.0304]
[1739386817709,0.3608,96902.0,96901.0,0.0304]
[1739386818108,0.3608,96902.0,96901.0,0.2367869]
[1739386818414,0.3558,96902.0,96901.0,0.2367869]
[1739386819120,0.001,96906.0,96901.0,0.0304]
[1739386819322,0.001,96906.0,96905.0,0.2063784]
[1739386819619,0.001,96906.0,96905.0,0.22250899]
[1739386819809,0.567122,96932.0,96921.0,0.2063443]
[1739386820209,0.567122,96932.0,96921.0,0.22247146]
[1739386821420,0.00715473,96922.0,96921.0,0.22347146]
[1739386822114,0.01215473,96922.0,96921.0,0.22347146]
[1739386822717,0.01215473,96922.0,96921.0,0.01712716]
[1739386823016,0.00615473,96922.0,96921.0,0.02612716]
[1739386823619,0.00515473,96922.0,96921.0,0.01612716]
[1739386823917,0.01315473,96922.0,96921.0,0.01712716]
[1739386824509,0.00515473,96922.0,96921.0,0.22347146]
[1739386825113,0.00015473,96922.0,96921.0,0.22347146]
[1739386825924,0.00115473,96922.0,96921.0,0.22347146]
[1739386826517,0.00115473,96922.0,96921.0,0.22547146]
[1739386827315,0.00115473,96922.0,96921.0,0.22247146]
[1739386827515,0.00215473,96922.0,96921.0,0.22947146]
[1739386828318,0.00215473,96922.0,96921.0,0.23999821]
[1739386828516,0.00215473,96922.0,96921.0,0.22947146]
[1739386828913,0.00115473,96922.0,96921.0,0.22947146]
[1739386829225,0.00015473,96922.0,96921.0,0.22647146]
[1739386829420,0.00015473,96922.0,96921.0,0.2103443]
[1739386829725,0.00015473,96922.0,96921.0,0.22647218]
[1739386830229,0.00115473,96922.0,96921.0,0.22947218]
[1739386830925,0.00115473,96922.0,96921.0,0.25527644]
[1739386831516,0.00115473,96922.0,96921.0,0.2133443]
[1739386831722,0.00115473,96922.0,96921.0,0.2552756]
[1739386832325,0.00115473,96922.0,96921.0,0.28852894]
[1739386832824,0.00115473,96922.0,96921.0,0.28752894]
[1739386833024,0.00115473,96922.0,96921.0,0.30365547]
[1739386833216,0.00015473,96922.0,96921.0,0.27240213]
[1739386833425,0.00115473,96922.0,96921.0,0.06705783]
[1739386833618,0.03385473,96922.0,96921.0,0.06705783]
[1739386834021,0.00115473,96922.0,96921.0,0.09931244]
[1739386834227,0.00115473,96922.0,96921.0,0.19721244]
[1739386834925,0.0327,96941.0,96921.0,0.38721244]
[1739386835127,0.00154785,96942.0,96940.0,0.2063039]
[1739386835329,0.00154785,96942.0,96941.0,0.0729313]
[1739386835626,0.0327,96959.0,96957.0,0.2062664]
[1739386835834,0.0327,96959.0,96958.0,0.01612742]
[1739386836931,0.0397,96959.0,96958.0,0.01612742]
[1739386838025,0.0397,96959.0,96949.0,0.00015473]
[1739386838225,0.3608,96951.0,96950.0,0.04191811]
[1739386838427,0.3608,96951.0,96950.0,0.0322447]
[1739386839728,0.37095253,96951.0,96950.0,0.01612233]
[1739386839932,0.37095253,96951.0,96950.0,0.01712233]
[1739386839933,0.45475253,96951.0,96950.0,0.01712233]
[1739386840134,0.45475253,96951.0,96950.0,0.001]
[1739386840830,0.45475253,96951.0,96931.0,0.0643]
[1739386840831,0.2062976,96943.0,96931.0,0.0643]
[1739386841038,0.2063102,96938.0,96935.0,0.01612503]
[1739386841237,0.0302,96937.0,96936.0,0.01612503]
[1739386841731,0.0302,96937.0,96926.0,0.2063328]
[1739386842327,0.2365121,96937.0,96926.0,0.2063328]
[1739386842522,0.2395121,96937.0,96926.0,0.2063328]
[1739386842724,0.2445121,96937.0,96926.0,0.2063328]
[1739386843329,0.2445121,96937.0,96928.0,0.2063274]
[1739386843529,0.2445121,96937.0,96929.0,0.2063258]
[1739386844428,0.2395121,96937.0,96929.0,0.2063258]
[1739386844629,0.2445121,96937.0,96929.0,0.2063258]
[1739386845237,0.2425121,96937.0,96929.0,0.2063258]
[1739386845932,0.2425121,96937.0,96932.0,0.2063201]
[1739386845933,0.0332,96937.0,96932.0,0.2063201]
[1739386846123,0.0332,96937.0,96927.0,0.12244344]
[1739386846124,0.0372,96937.0,96927.0,0.12244344]
[1739386846423,0.2063136,96936.0,96926.0,0.2063329]
[1739386847634,0.2063136,96936.0,96921.0,0.0101577]
[1739386847832,0.2063136,96936.0,96927.0,0.2063311]
[1739386848331,0.2063136,96936.0,96935.0,0.01290139]
[1739386848540,0.0362,96937.0,96935.0,0.01290139]
[1739386848735,0.0332,96937.0,96936.0,0.01290139]
[1739386848925,0.0332,96937.0,96936.0,0.02902779]
[1739386849537,0.0302,96937.0,96936.0,0.02902779]
[1739386850131,0.0332,96937.0,96936.0,0.02902779]
[1739386850339,0.0332,96937.0,96936.0,0.01290139]
[1739386850537,0.2063123,96936.0,96916.0,0.5671536]
[1739386851043,0.2063123,96936.0,96917.0,0.2063526]
[1739386851243,0.2063123,96936.0,96918.0,0.2063504]
[1739386851536,0.2063123,96936.0,96920.0,0.12244344]
[1739386851735,0.2133123,96936.0,96934.0,0.00254742]
[1739386851939,0.2133123,96936.0,96935.0,0.01612721]
[1739386852142,0.2133123,96936.0,96934.0,0.00254742]
[1739386852543,0.2123123,96936.0,96934.0,0.00254742]
[1739386852841,0.2153123,96936.0,96934.0,0.00254742]
[1739386853143,0.2063145,96935.0,96934.0,0.00254742]
[1739386853341,0.2063145,96935.0,96934.0,0.01867471]
[1739386853638,0.2063145,96935.0,96934.0,0.00254742]
[1739386853832,0.2063145,96935.0,96934.0,0.01867479]
[1739386854034,0.2063145,96935.0,96934.0,0.00254742]
[1739386854337,0.2063145,96935.0,96934.0,0.00154742]
[1739386854528,0.003,96935.0,96915.0,0.2063551]
[1739386854734,0.3608,96919.0,96908.0,0.3608]
[1739386855040,0.3608,96919.0,96909.0,0.12244344]
[1739386855237,0.00015473,96923.0,96922.0,0.2063421]
[1739386855729,0.00015473,96923.0,96922.0,0.5063421]
[1739386855935,0.00052001,96939.0,96918.0,0.3608]
[1739386856135,0.004,96935.0,96934.0,0.2063166]
[1739386856335,0.3608,96952.0,96934.0,0.2191]
[1739386856540,0.3608,96952.0,96942.0,0.12244344]
[1739386856731,0.5670802,96952.0,96942.0,0.12244344]
[1739386856937,0.5670802,96952.0,96950.0,0.2062816]
[1739386857443,0.3608,96952.0,96951.0,0.2062804]
[1739386857938,0.005,96952.0,96951.0,0.2062804]
[1739386858141,0.005,96952.0,96951.0,0.22240342]
[1739386858444,0.005,96952.0,96951.0,0.2385268]
[1739386858635,0.02,96952.0,96951.0,0.2395268]
[1739386859035,0.02,96952.0,96951.0,0.2703268]
[1739386859243,0.022,96952.0,96951.0,0.29612266]
[1739386859844,0.022,96952.0,96951.0,0.29712266]
[1739386861339,0.022,96952.0,96951.0,0.03424616]
[1739386861649,0.022,96952.0,96951.0,0.01812278]
[1739386862236,0.022,96952.0,96951.0,0.001]
[1739386862435,0.015,96952.0,96951.0,0.02212527]
[1739386862641,0.015,96952.0,96951.0,0.006]
[1739386862838,0.015,96952.0,96951.0,0.001]
[1739386863140,0.017,96952.0,96951.0,0.001]
[1739386863331,0.002,96952.0,96942.0,0.2062995]
[1739386863535,0.3608,96944.0,96943.0,0.01612489]
[1739386864342,0.3608,96944.0,96943.0,0.03224978]
[1739386864944,0.3608,96944.0,96943.0,0.0322498]
[1739386865143,0.3618,96944.0,96943.0,0.0322498]
[1739386865638,0.3953,96944.0,96943.0,0.0322498]
[1739386865839,0.3953,96944.0,96943.0,0.03224981]
[1739386866144,0.3943,96944.0,96943.0,0.03224981]
[1739386866349,0.3963,96944.0,96943.0,0.03224981]
[1739386866748,0.3943,96944.0,96943.0,0.03224981]
[1739386866950,0.3963,96944.0,96943.0,0.03224981]
[1739386867342,0.3628,96944.0,96943.0,0.0709496]
[1739386867847,0.3638,96944.0,96943.0,0.0709496]
[1739386868561,0.3638,96944.0,96943.0,0.10919768]
[1739386868562,0.3628,96944.0,96943.0,0.10919768]
[1739386868742,0.3628,96944.0,96943.0,0.13959768]
[1739386868945,0.001,96944.0,96943.0,0.14159768]
[1739386869451,0.001,96944.0,96943.0,0.14358841]
[1739386869657,0.0325,96956.0,96943.0,0.16938494]
[1739386869846,0.0325,96956.0,96946.0,0.12244344]
[1739386870147,0.0325,96956.0,96954.0,0.2062721]
[1739386870346,0.0325,96956.0,96955.0,0.05481785]
[1739386870552,0.3608,96962.0,96956.0,0.2062698]
[1739386870853,0.3608,96964.0,96956.0,0.29368765]
[1739386871150,0.3608,96964.0,96956.0,0.05481785]
[1739386871346,0.2062658,96958.0,96956.0,0.05481785]
[1739386871740,0.2062658,96958.0,96956.0,0.09673927]
[1739386871942,0.2062658,96958.0,96956.0,0.09873927]
[1739386872145,0.2062658,96958.0,96956.0,0.07294274]
[1739386872449,0.00215473,96957.0,96956.0,0.04714621]
[1739386872644,0.00215473,96957.0,96956.0,0.01812489]
[1739386872847,0.00015473,96957.0,96956.0,0.01812489]
[1739386873248,0.00015473,96957.0,96956.0,0.002]
[1739386873551,0.2062798,96952.0,96942.0,0.2062987]
[1739386873743,0.0314,96951.0,96943.0,0.05481922]
[1739386873942,0.0314,96951.0,96944.0,0.05481922]
[1739386874143,0.0314,96951.0,96945.0,0.05481922]
[1739386874351,0.2376814,96951.0,96946.0,0.05481922]
[1739386874538,0.2376814,96951.0,96947.0,0.05481922]
[1739386874738,0.2062847,96949.0,96948.0,0.02902194]
[1739386875152,0.2053647,96949.0,96948.0,0.04514524]
[1739386875550,0.2053647,96949.0,96948.0,0.04514646]
[1739386875945,0.2053647,96949.0,96948.0,0.02902316]
[1739386877252,0.2053647,96949.0,96948.0,0.03202316]
[1739386877653,0.2053647,96949.0,96948.0,0.03202401]
[1739386878147,0.2123647,96949.0,96948.0,0.03002401]
[1739386878546,0.2123647,96949.0,96948.0,0.03102401]
[1739386879146,0.2163647,96949.0,96948.0,0.03002401]
[1739386879655,0.2163647,96949.0,96948.0,0.03002394]
[1739386880043,0.22694655,96949.0,96948.0,0.03002394]
[1739386880258,0.22694655,96949.0,96948.0,0.03002462]
[1739386881750,0.011,96949.0,96948.0,0.03002462]
[1739386881948,0.2172847,96949.0,96948.0,0.03002462]
[1739386882756,0.2172847,96949.0,96948.0,0.04614909]
[1739386883652,0.22755055,96949.0,96948.0,0.04614909]
[1739386883856,0.22755055,96949.0,96948.0,0.0461488]
[1739386884057,0.2172847,96949.0,96948.0,0.0461488]
[1739386885251,0.011,96949.0,96948.0,0.0461488]
[1739386885561,0.011,96949.0,96948.0,0.27823408]
[1739386885951,0.3608,96954.0,96948.0,0.08212194]
[1739386886150,0.03,96963.0,96949.0,0.12016697]
[1739386886356,0.03,96963.0,96956.0,0.2062699]
[1739386886556,0.03,96963.0,96956.0,0.26109251]
[1739386887061,0.03,96963.0,96956.0,0.27721698]
[1739386887263,0.2062599,96961.0,96956.0,0.27721698]
[1739386887861,0.2062599,96961.0,96956.0,0.27721419]
[1739386888655,0.01015473,96957.0,96956.0,0.27821419]
[1739386888958,0.01015473,96957.0,96956.0,0.07194429]
[1739386889153,0.21642253,96957.0,96956.0,0.07194429]
[1739386889350,0.21742253,96957.0,96956.0,0.07194429]
[1739386889654,0.20742253,96957.0,96956.0,0.07094429]
[1739386890455,0.20742253,96957.0,96956.0,0.03224599]
[1739386890964,0.56822253,96957.0,96956.0,0.03224599]
[1739386891364,0.36195473,96957.0,96956.0,0.23851589]
[1739386892169,0.36295473,96957.0,96956.0,0.23851589]
[1739386892368,0.56922253,96957.0,96956.0,0.23851589]
[1739386892867,0.56922253,96957.0,96956.0,0.03224599]
[1739386893864,0.56822253,96957.0,96956.0,0.03224599]
[1739386894063,0.36295473,96957.0,96953.0,0.3084096]
[1739386894361,0.2062742,96954.0,96953.0,0.3084096]
[1739386894757,0.2062742,96954.0,96953.0,0.2585096]
[1739386894958,0.2062742,96954.0,96953.0,0.2086096]
[1739386895566,0.2062742,96954.0,96946.0,0.37082037]
[1739386895567,0.2062785,96952.0,96951.0,0.24705371]
[1739386896568,0.2102785,96952.0,96951.0,0.24705371]
[1739386897063,0.2182785,96952.0,96951.0,0.24805371]
[1739386898067,0.22870196,96952.0,96951.0,0.24805371]
[1739386898265,0.22470196,96952.0,96951.0,0.24805371]
[1739386898462,0.21670196,96952.0,96951.0,0.24705371]
[1739386898668,0.21670196,96952.0,96951.0,0.24905371]
[1739386899168,0.22070196,96952.0,96951.0,0.24905371]
[1739386899470,0.22870196,96952.0,96951.0,0.001]
[1739386900564,0.22870196,96952.0,96951.0,0.01389978]
[1739386901773,0.22870196,96952.0,96951.0,0.001]
[1739386903971,0.22870196,96952.0,96951.0,0.01390022]
[1739386904171,0.22870196,96952.0,96951.0,0.001]
[1739386911080,0.22870196,96952.0,96951.0,0.03324884]
[1739386911382,0.22870196,96952.0,96951.0,0.01712438]
[1739386911573,0.22870196,96952.0,96951.0,0.03324877]
[1739386911775,0.22170196,96952.0,96951.0,0.01612438]
[1739386912168,0.01342346,96952.0,96937.0,0.00015473]
[1739386912371,0.5671083,96938.0,96937.0,0.00015473]
[1739386914072,0.5671083,96938.0,96937.0,0.00115473]
[1739386914683,0.5671083,96938.0,96937.0,0.00015473]
[1739386914872,0.5671083,96938.0,96937.0,0.00115473]
[1739386917567,0.3608,96938.0,96937.0,0.00115473]
[1739386918280,0.5671083,96938.0,96937.0,0.00115473]
[1739386921979,0.3608,96943.0,96937.0,0.00115473]
[1739386922177,0.5670977,96943.0,96938.0,0.2385078]
[1739386922379,0.3608,96943.0,96940.0,0.206304]
[1739386922585,0.3608,96943.0,96942.0,0.2062998]
[1739386922971,0.3608,96943.0,96942.0,0.22242483]
[1739386923378,0.3618,96943.0,96942.0,0.22242483]
[1739386923977,0.3638,96943.0,96942.0,0.22242483]
[1739386924180,0.003,96943.0,96942.0,0.22242483]
[1739386924488,0.3608,96967.0,96956.0,0.20627]
[1739386924788,0.3608,96967.0,96956.0,0.24818696]
[1739386924971,0.2062539,96964.0,96956.0,0.24818696]
[1739386925775,0.00515473,96957.0,96956.0,0.24818696]
[1739386926777,0.01315473,96957.0,96956.0,0.24918696]
[1739386926980,0.01315473,96957.0,96956.0,0.25957739]
[1739386927278,0.01315473,96957.0,96956.0,0.23378287]
[1739386927482,0.01315473,96957.0,96956.0,0.25957718]
[1739386927684,0.01315473,96957.0,96956.0,0.50663089]
[1739386927983,0.01315473,96957.0,96956.0,0.51952751]
[1739386928589,0.01315473,96957.0,96956.0,0.51952763]
[1739386928979,0.01315473,96957.0,96956.0,0.50985444]
[1739386929389,0.0015475,96972.0,96971.0,0.2062381]
[1739386929682,0.3608,96995.0,96971.0,0.05480856]
[1739386929880,0.3608,96995.0,96982.0,0.12244344]
[1739386930090,0.3608,96995.0,96991.0,0.2061949]
[1739386930283,0.3608,96995.0,96992.0,0.01289674]
[1739386930472,0.206168,97004.0,96998.0,0.2061794]
[1739386930678,0.00015473,97003.0,96999.0,0.0958]
[1739386931178,0.2061753,97001.0,96999.0,0.0958]
[1739386932382,0.00015473,97003.0,97000.0,0.2061765]
[1739386932585,0.00015473,97003.0,97001.0,0.2061729]
[1739386933981,0.00015473,97003.0,97001.0,0.2071729]
[1739386934988,0.00015473,97003.0,97001.0,0.2081729]
[1739386936984,0.00015473,97003.0,97002.0,0.0161125]
[1739386937887,0.00015473,97003.0,97002.0,0.02900268]
[1739386938388,0.56712483,97003.0,97001.0,0.002]
[1739386938591,0.56712483,97003.0,97001.0,0.001]
[1739386938790,0.56712483,97003.0,97001.0,0.002]
[1739386938985,0.20632483,97003.0,97001.0,0.002]
[1739386939186,0.00015473,97003.0,97002.0,0.002]
[1739386939683,0.00015473,97003.0,97002.0,0.001]
[1739386939885,0.20632593,97003.0,97001.0,0.2081734]
[1739386940281,0.20632593,97003.0,97001.0,0.002]
[1739386941587,0.20632593,97003.0,97002.0,0.002]
[1739386941790,0.20632593,97003.0,97002.0,0.01811471]
[1739386941987,0.20632593,97003.0,97002.0,0.01711471]
[1739386942390,0.20632593,97003.0,97002.0,0.01611471]
[1739386942780,0.20632593,97003.0,97002.0,0.01711471]
[1739386943081,0.20632593,97003.0,97002.0,0.001]
[1739386943286,0.20632593,97003.0,97002.0,0.002]
[1739386943600,0.23912593,97003.0,97002.0,0.002]
[1739386947495,0.23912593,97003.0,97002.0,0.01811615]
[1739386948196,0.23912593,97003.0,97002.0,0.002]
[1739386950096,0.2062104,96984.0,96968.0,0.2062424]
[1739386950301,0.5670104,96984.0,96983.0,0.01627193]
[1739386950486,0.9278104,96984.0,96983.0,0.01627193]
[1739386950692,0.9278104,96984.0,96975.0,0.18662473]
[1739386950693,0.2062274,96976.0,96975.0,0.18662473]
[1739386950891,0.5670274,96976.0,96975.0,0.20274562]
[1739386951085,0.5670274,96976.0,96975.0,0.18662473]
[1739386951888,0.37123615,96976.0,96968.0,0.24705371]
[1739386952200,0.5670423,96969.0,96968.0,0.24705371]
[1739386954688,0.5670423,96969.0,96968.0,0.24805371]
[1739386954896,0.5670423,96969.0,96968.0,0.001]
[1739386955790,0.2062466,96967.0,96966.0,0.00015444]
[1739386963101,0.2062466,96967.0,96966.0,4e-08]
[1739386963297,0.5062466,96967.0,96966.0,4e-08]
[1739386964794,0.2062466,96967.0,96966.0,4e-08]
[1739386966805,0.2063189,96933.0,96932.0,0.0647]
[1739386967007,0.5671189,96933.0,96932.0,0.0647]
[1739386970607,0.57726843,96933.0,96932.0,0.0647]
[1739386971007,0.58126843,96933.0,96932.0,0.0647]
[1739386971210,0.58226843,96933.0,96932.0,0.0647]
[1739386972507,0.58126843,96933.0,96932.0,0.0647]
[1739386972707,0.58326843,96933.0,96932.0,0.0647]
[1739386972910,0.5731189,96933.0,96932.0,0.0647]
[1739386973511,0.5781189,96933.0,96932.0,0.0647]
[1739386974105,0.5671189,96933.0,96932.0,0.0647]
[1739386974301,0.5771189,96933.0,96932.0,0.0647]
[1739386974801,0.5761189,96933.0,96932.0,0.0647]
[1739386975815,0.5721189,96933.0,96932.0,0.0647]
[1739386976018,0.5751189,96933.0,96932.0,0.0647]
[1739386976610,0.5751189,96933.0,96932.0,0.0657]
[1739386977709,0.5751189,96933.0,96932.0,0.001]
[1739386978216,0.2063573,96915.0,96914.0,0.0307]
[1739386978407,0.9279573,96915.0,96914.0,0.0307]
[1739386979615,0.9279573,96915.0,96914.0,0.0327]
[1739386980309,0.9279573,96915.0,96914.0,0.0307]
[1739386980510,0.9289573,96915.0,96914.0,0.0307]
[1739386981120,0.9299573,96915.0,96914.0,0.0307]
[1739386981717,0.9319573,96915.0,96914.0,0.0307]
[1739386981909,0.9379573,96915.0,96914.0,0.0307]
[1739386982619,0.94118489,96915.0,96914.0,0.0307]
[1739386982816,0.94818489,96915.0,96914.0,0.001]
[1739386983116,0.2063871,96901.0,96892.0,0.0971]
[1739386983318,0.5671871,96901.0,96892.0,0.0971]
[1739386984323,0.5701871,96901.0,96892.0,0.0971]
[1739386985119,0.5771871,96901.0,96892.0,0.0971]
[1739386985513,0.58740736,96901.0,96892.0,0.0971]
[1739386985919,0.58040736,96901.0,96892.0,0.0971]
[1739386986221,0.58640736,96901.0,96892.0,0.0971]
[1739386987717,0.3638,96901.0,96892.0,0.0971]
[1739386988019,0.44156,96901.0,96900.0,0.101]
[1739386988526,0.38466,96901.0,96900.0,0.1]
[1739386988720,0.3209,96901.0,96900.0,0.1]
[1739386989025,0.12259819,96910.0,96900.0,0.11613182]
[1739386989026,0.00015475,96910.0,96900.0,0.11613182]
[1739386989220,0.00015475,96910.0,96903.0,0.2063824]
[1739386989420,0.00015475,96910.0,96904.0,0.22251182]
[1739386989614,0.12244344,96920.0,96908.0,0.2063717]
[1739386989815,0.12244344,96920.0,96909.0,0.01613064]
[1739386990027,0.12244344,96920.0,96910.0,0.02903463]
[1739386990320,0.12244344,96920.0,96911.0,0.01613064]
[1739386990528,0.2063537,96917.0,96912.0,0.01613064]
[1739386990723,0.2063537,96917.0,96913.0,0.01613064]
[1739386991025,0.2063537,96917.0,96914.0,0.01613064]
[1739386991225,0.2063537,96917.0,96903.0,0.20653745]
[1739386991428,0.00154825,96921.0,96913.0,0.2063601]
[1739386991620,0.3678,96915.0,96914.0,0.01613014]
[1739386991832,0.007,96915.0,96914.0,0.01613014]
[1739386992022,0.00154825,96921.0,96914.0,0.04723014]
[1739386992224,0.00154825,96921.0,96915.0,0.04623014]
[1739386992423,0.00154825,96921.0,96916.0,0.01613014]
[1739386992628,0.00154825,96921.0,96917.0,0.01613014]
[1739386992828,0.00154825,96921.0,96918.0,0.01613014]
[1739386993030,0.00154825,96921.0,96919.0,0.01613014]
[1739386993227,0.00154825,96921.0,96920.0,0.01613014]
[1739386993628,0.00154825,96921.0,96919.0,0.3608]
[1739386993830,0.00154825,96921.0,96920.0,0.22247589]